[Event "2nd Irena Warakomska Memorial-A"]
[Site "Suwalki"]
[Date "2018.08.03"]
[Round "3"]
[White "Shtembuliak, Evgeny"]
[Black "Roy, Prantik"]
[Result "1-0"]
[ECO "A40"]
[WhiteElo "2518"]
[BlackElo "2377"]
[Annotator "ChessBase"]
[PlyCount "59"]
[EventDate "2018.08.01"]
[EventType "swiss"]
[EventCountry "POL"]
[SourceTitle "playchess.com"]
[Source "ChessBase"]
[SourceQuality "1"]
[TimeControl "40/5400+30:1800+30"]

1. d4 {[%emt 0:00:00]} e6 {[%emt 0:03:01]} 2. c4 {[%emt 0:00:31]} b6 {[%emt 0:00:13]} 3. e4 {[%emt 0:01:24]} Bb7 {[%emt 0:00:07]} 4. Bd3 {[%emt 0:00:05]} Nc6 {[%emt 0:00:06]} 5. Ne2 {[%emt 0:05:10]} e5 {[%emt 0:04:41]} 6. d5 {[%emt 0:00:22]} Nb4 {[%emt 0:00:12]} 7. Nbc3 {[%emt 0:02:25]} Nxd3+ {[%emt 0:02:34]} 8. Qxd3 {[%emt 0:00:03]} Nf6 {[%emt 0:00:25]} 9. f4 {[%emt 0:03:20]} Bc5 {[%emt 0:04:09]} 10. Be3 {[%emt 0:06:48]} Qe7 {[%emt 0:07:06]} 11. Bxc5 {[%emt 0:02:44]} Qxc5 {[%emt 0:00:53]} 12. Qg3 {[%emt 0:03:03]} Qe7 {[%emt 0:18:42]} 13. fxe5 {[%emt 0:18:15]} Nh5 {[%emt 0:00:07]} 14. Qh3 {[%emt 0:11:10]} Qxe5 {[%emt 0:01:02]} 15. O-O {[%emt 0:00:06]} g6 {[%emt 0:01:49]} 16. Rf3 {[%emt 0:00:27]} O-O {[%emt 0:11:24]} 17. Raf1 {[%emt 0:03:46]} Bc8 {[%emt 0:07:21]} 18. d6 {[%emt 0:13:14]} Qxd6 {[%emt 0:01:22]} 19. g4 {[%emt 0:00:09]} Qc5+ {[%emt 0:03:57]} 20. Kh1 {[%emt 0:00:12]} d5 {[%emt 0:04:16]} 21. Qh4 {[%emt 0:06:24]} d4 {[%emt 0:06:59]} 22. Nd5 {[%emt 0:00:37]} Bxg4 {[%emt 0:01:02]} 23. Qxg4 {[%emt 0:00:35]} c6 {[%emt 0:05:48]} 24. Nef4 {[%emt 0:02:03]} cxd5 {[%emt 0:05:39]} 25. Nxh5 {[%emt 0:00:27]} dxe4 {[%emt 0:03:07]} 26. Nf6+ {[%emt 0:00:05]} Kg7 {[%emt 0:00:21]} 27. Qxe4 {[%emt 0:00:18]} Rad8 {[%emt 0:01:36]} 28. b4 {[%emt 0:01:56]} Qg5 {[%emt 0:05:16]} 29. h4 {[%emt 0:00:14]} Qd2 {[%emt 0:00:19]} 30. Qe5 {[%emt 0:00:07]} 1-0

[Event "2nd Irena Warakomska Memorial-A"]
[Site "Suwalki"]
[Date "2018.08.03"]
[Round "3"]
[White "Gleizerov, Evgeny"]
[Black "Teclaf, Pawel"]
[Result "1-0"]
[ECO "D85"]
[WhiteElo "2507"]
[BlackElo "2362"]
[Annotator "ChessBase"]
[PlyCount "103"]
[EventDate "2018.08.01"]
[EventType "swiss"]
[EventCountry "POL"]
[SourceTitle "playchess.com"]
[Source "ChessBase"]
[SourceQuality "1"]
[TimeControl "40/5400+30:1800+30"]

1. d4 {[%emt 0:00:00]} Nf6 {[%emt 0:00:00]} 2. c4 {[%emt 0:00:00]} g6 {[%emt 0:00:00]} 3. Nc3 {[%emt 0:00:00]} d5 {[%emt 0:00:00]} 4. cxd5 {[%emt 0:00:00]} Nxd5 {[%emt 0:00:00]} 5. Bd2 {[%emt 0:00:00]} Nb6 {[%emt 0:00:00]} 6. Bf4 {[%emt 0:04:27]} Bg7 {[%emt 0:02:26]} 7. e3 {[%emt 0:00:06]} O-O {[%emt 0:03:35]} 8. Rc1 {[%emt 0:00:49]} Nc6 {[%emt 0:23:58]} 9. Nf3 {[%emt 0:01:04]} Be6 {[%emt 0:06:45]} 10. Be2 {[%emt 0:02:34]} Bc4 {[%emt 0:11:45]} 11. O-O {[%emt 0:00:47]} Bxe2 {[%emt 0:08:10]} 12. Qxe2 {[%emt 0:00:06]} Nd5 {[%emt 0:02:56]} 13. Bg3 {[%emt 0:15:34]} e6 {[%emt 0:03:49]} 14. Rfd1 {[%emt 0:00:41]} Nxc3 {[%emt 0:01:41]} 15. Rxc3 {[%emt 0:00:50]} Qd5 {[%emt 0:01:10]} 16. Bxc7 {[%emt 0:09:01]} Qxa2 {[%emt 0:09:09]} 17. Qb5 {[%emt 0:00:05]} Qd5 {[%emt 0:07:17]} 18. Qxb7 {[%emt 0:04:16]} Ne7 {[%emt 0:00:02]} 19. Qa6 {[%emt 0:02:45]} Qd7 {[%emt 0:00:29]} 20. Qd6 {[%emt 0:03:09]} Qxd6 {[%emt 0:00:07]} 21. Bxd6 {[%emt 0:00:06]} Rfe8 {[%emt 0:00:01]} 22. Ra1 {[%emt 0:07:05]} Nd5 {[%emt 0:02:03]} 23. Rca3 {[%emt 0:00:05]} Rec8 {[%emt 0:02:13]} 24. Kf1 {[%emt 0:03:30]} Rc6 {[%emt 0:01:31]} 25. Ra6 {[%emt 0:00:27]} Rxa6 {[%emt 0:03:12]} 26. Rxa6 {[%emt 0:00:02]} Bf8 {[%emt 0:00:04]} 27. Bxf8 {[%emt 0:04:39]} Kxf8 {[%emt 0:00:02]} 28. Ne5 {[%emt 0:00:06]} Nb4 {[%emt 0:01:43]} 29. Rd6 {[%emt 0:00:46]} Ke8 {[%emt 0:01:38]} 30. Nc6 {[%emt 0:07:59]} Nxc6 {[%emt 0:00:01]} 31. Rxc6 {[%emt 0:00:01]} Rb8 {[%emt 0:00:15]} 32. Rc2 {[%emt 0:00:17]} a5 {[%emt 0:01:48]} 33. Ke2 {[%emt 0:00:05]} Rb3 {[%emt 0:00:33]} 34. Kf3 {[%emt 0:02:18]} Ke7 {[%emt 0:01:27]} 35. Ke4 {[%emt 0:02:11]} h5 {[%emt 0:00:40]} 36. Ke5 {[%emt 0:06:42]} Rb5+ {[%emt 0:00:02]} 37. Kf4 {[%emt 0:00:02]} Kf6 {[%emt 0:02:01]} 38. h4 {[%emt 0:01:56]} Rb4 {[%emt 0:01:17]} 39. Ke4 {[%emt 0:01:40]} Rb3 {[%emt 0:00:06]} 40. f3 {[%emt 0:00:00]} Ke7 {[%emt 0:00:00]} 41. g4 {[%emt 0:02:53]} f5+ {[%emt 0:22:31]} 42. gxf5 {[%emt 0:00:30]} gxf5+ {[%emt 0:00:02]} 43. Kf4 {[%emt 0:00:08]} Kf6 {[%emt 0:00:06]} 44. Rc6 {[%emt 0:12:35]} Rb4 {[%emt 0:05:03]} 45. Rd6 {[%emt 0:01:37]} a4 {[%emt 0:01:10]} 46. Ra6 {[%emt 0:06:37]} Rb5 {[%emt 0:01:05]} 47. e4 {[%emt 0:00:30]} fxe4 {[%emt 0:03:01]} 48. fxe4 {[%emt 0:00:04]} Kf7 {[%emt 0:01:09]} 49. Rxa4 {[%emt 0:01:00]} Rxb2 {[%emt 0:00:03]} 50. Ra5 {[%emt 0:01:16]} Kg6 {[%emt 0:03:34]} 51. Ke5 {[%emt 0:01:11]} Rb6 {[%emt 0:00:31]} 52. Ra7 {[%emt 0:00:17]} 1-0

[Event "2nd Irena Warakomska Memorial-A"]
[Site "Suwalki"]
[Date "2018.08.03"]
[Round "3"]
[White "Venkataraman, Karthik"]
[Black "Tomczak, Jacek"]
[Result "0-1"]
[ECO "B50"]
[WhiteElo "2501"]
[BlackElo "2596"]
[Annotator "ChessBase"]
[PlyCount "82"]
[EventDate "2018.08.01"]
[EventType "swiss"]
[EventCountry "POL"]
[SourceTitle "playchess.com"]
[Source "ChessBase"]
[SourceQuality "1"]
[TimeControl "40/5400+30:1800+30"]

1. Nf3 {[%emt 0:00:00]} c5 {[%emt 0:00:08]} 2. e4 {[%emt 0:00:00]} d6 {[%emt 0:00:06]} 3. Nc3 Nf6 4. e5 {[%emt 0:01:02]} dxe5 {[%emt 0:02:10]} 5. Nxe5 {[%emt 0:00:00]} a6 {[%emt 0:08:26]} 6. g3 Qd6 7. Qe2 {[%emt 0:12:49]} Nc6 {[%emt 0:05:08]} 8. Nxc6 {[%emt 0:00:00]} Qxc6 {[%emt 0:00:13]} 9. Rg1 Bg4 {[%emt 0:16:47]} 10. Bg2 {[%emt 0:00:33]} Qxg2 11. Rxg2 {[%emt 0:00:04]} Bxe2 {[%emt 0:00:35]} 12. Kxe2 O-O-O 13. a4 {[%emt 0:02:16]} Nd5 {[%emt 0:10:20]} 14. Ne4 {[%emt 0:02:19]} e5 {[%emt 0:05:33]} 15. a5 {[%emt 0:07:06]} Be7 {[%emt 0:02:50]} 16. b3 {[%emt 0:21:01]} f5 {[%emt 0:13:30]} 17. Nc3 {[%emt 0:00:16]} Nxc3+ {[%emt 0:00:05]} 18. dxc3 {[%emt 0:00:03]} h5 {[%emt 0:00:09]} 19. h4 {[%emt 0:04:02]} Rd7 {[%emt 0:06:25]} 20. Rg1 {[%emt 0:01:46]} Kc7 {[%emt 0:03:20]} 21. Be3 {[%emt 0:01:28]} Rhd8 {[%emt 0:01:06]} 22. Rad1 {[%emt 0:00:37]} Rxd1 {[%emt 0:02:23]} 23. Rxd1 {[%emt 0:00:05]} Rxd1 {[%emt 0:00:02]} 24. Kxd1 {[%emt 0:00:06]} c4 {[%emt 0:00:06]} 25. b4 {[%emt 0:05:47]} Kc6 {[%emt 0:01:36]} 26. Ke2 {[%emt 0:00:10]} Kd5 {[%emt 0:01:49]} 27. Bd2 {[%emt 0:00:34]} Ke4 {[%emt 0:02:22]} 28. f3+ {[%emt 0:08:07]} Kd5 {[%emt 0:00:03]} 29. Be1 {[%emt 0:00:11]} Bf6 {[%emt 0:02:44]} 30. Ke3 {[%emt 0:02:09]} g6 {[%emt 0:01:08]} 31. f4 {[%emt 0:01:54]} Bd8 {[%emt 0:07:52]} 32. fxe5 {[%emt 0:02:15]} Kxe5 {[%emt 0:00:27]} 33. Kf3 {[%emt 0:00:21]} Bf6 {[%emt 0:04:34]} 34. Ke3 {[%emt 0:01:59]} Ke6 {[%emt 0:00:53]} 35. Kf4 {[%emt 0:01:30]} Be5+ {[%emt 0:00:14]} 36. Kf3 {[%emt 0:02:14]} Kd5 {[%emt 0:00:12]} 37. Ke3 {[%emt 0:00:08]} Kc6 {[%emt 0:00:13]} 38. Kd2 {[%emt 0:00:09]} Kb5 {[%emt 0:00:30]} 39. Kc1 {[%emt 0:00:08]} Ka4 {[%emt 0:00:23]} 40. Kb2 {[%emt 0:00:00]} f4 {[%emt 0:00:00]} 41. gxf4 {[%emt 0:00:44]} Bxf4 {[%emt 0:00:24]} 0-1

[Event "2nd Irena Warakomska Memorial-A"]
[Site "Suwalki"]
[Date "2018.08.03"]
[Round "3"]
[White "Leniart, Arkadiusz"]
[Black "Tomaszewski, Roman"]
[Result "1-0"]
[ECO "D70"]
[WhiteElo "2498"]
[BlackElo "2258"]
[Annotator "ChessBase"]
[PlyCount "59"]
[EventDate "2018.08.01"]
[EventType "swiss"]
[EventCountry "POL"]
[SourceTitle "playchess.com"]
[Source "ChessBase"]
[SourceQuality "1"]
[TimeControl "40/5400+30:1800+30"]

1. d4 {[%emt 0:00:00]} Nf6 {[%emt 0:00:00]} 2. c4 {[%emt 0:00:00]} g6 {[%emt 0:00:00]} 3. f3 {[%emt 0:00:00]} d5 {[%emt 0:00:00]} 4. cxd5 {[%emt 0:00:00]} Nxd5 {[%emt 0:00:00]} 5. e4 {[%emt 0:00:00]} Nb6 {[%emt 0:00:09]} 6. Nc3 {[%emt 0:00:11]} Bg7 {[%emt 0:00:06]} 7. Be3 {[%emt 0:00:04]} O-O {[%emt 0:05:43]} 8. Qd2 {[%emt 0:00:33]} e5 {[%emt 0:00:08]} 9. d5 {[%emt 0:00:04]} c6 {[%emt 0:00:07]} 10. h4 {[%emt 0:00:20]} cxd5 {[%emt 0:00:33]} 11. exd5 {[%emt 0:00:06]} N8d7 {[%emt 0:19:19]} 12. h5 {[%emt 0:00:15]} Nf6 {[%emt 0:00:06]} 13. hxg6 {[%emt 0:00:05]} fxg6 {[%emt 0:00:07]} 14. O-O-O {[%emt 0:00:07]} e4 {[%emt 0:00:03]} 15. fxe4 {[%emt 0:11:12]} Ng4 {[%emt 0:52:09]} 16. Bc5 {[%emt 0:06:29]} Re8 {[%emt 0:06:35]} 17. Nf3 {[%emt 0:06:53]} Nd7 {[%emt 0:00:54]} 18. Bd4 {[%emt 0:03:22]} Nde5 {[%emt 0:00:35]} 19. Kb1 {[%emt 0:03:13]} Bd7 {[%emt 0:02:19]} 20. Be2 {[%emt 0:02:51]} a6 {[%emt 0:04:51]} 21. d6 {[%emt 0:13:39]} Be6 {[%emt 0:04:17]} 22. Nxe5 {[%emt 0:02:12]} Nxe5 {[%emt 0:00:02]} 23. Bxe5 {[%emt 0:01:22]} Bxe5 {[%emt 0:00:03]} 24. Nd5 {[%emt 0:00:13]} Qd7 {[%emt 0:03:09]} 25. Bc4 {[%emt 0:06:15]} h5 {[%emt 0:00:35]} 26. Nb6 {[%emt 0:01:31]} Qf7 {[%emt 0:00:26]} 27. Rhf1 {[%emt 0:01:12]} Bxc4 {[%emt 0:00:24]} 28. Rxf7 {[%emt 0:00:09]} Bxf7 {[%emt 0:00:05]} 29. Nxa8 {[%emt 0:00:06]} Rxa8 {[%emt 0:00:09]} 30. Qg5 {[%emt 0:00:07]} 1-0

[Event "2nd Irena Warakomska Memorial-A"]
[Site "Suwalki"]
[Date "2018.08.03"]
[Round "3"]
[White "Koziak, Vitali"]
[Black "Mulet, Piotr"]
[Result "1-0"]
[ECO "A33"]
[WhiteElo "2476"]
[BlackElo "2238"]
[Annotator "ChessBase"]
[PlyCount "69"]
[EventDate "2018.08.01"]
[EventType "swiss"]
[EventCountry "POL"]
[SourceTitle "playchess.com"]
[Source "ChessBase"]
[SourceQuality "1"]
[TimeControl "40/5400+30:1800+30"]

1. Nf3 {[%emt 0:00:00]} Nf6 {[%emt 0:02:40]} 2. c4 {[%emt 0:00:00]} c5 {[%emt 0:00:31]} 3. Nc3 {[%emt 0:00:08]} Nc6 {[%emt 0:00:33]} 4. d4 {[%emt 0:02:19]} cxd4 {[%emt 0:00:05]} 5. Nxd4 {[%emt 0:00:05]} e6 {[%emt 0:01:29]} 6. Nxc6 {[%emt 0:06:11]} bxc6 {[%emt 0:00:24]} 7. g3 {[%emt 0:00:17]} Bb4 {[%emt 0:17:27]} 8. Bg2 {[%emt 0:01:23]} Ba6 {[%emt 0:01:08]} 9. Qb3 {[%emt 0:12:46]} Qa5 {[%emt 0:03:04]} 10. Bf4 {[%emt 0:21:29]} Qc5 {[%emt 0:02:51]} 11. a3 {[%emt 0:02:03]} Bxc3+ {[%emt 0:02:51]} 12. Qxc3 {[%emt 0:02:03]} Qxc4 {[%emt 0:00:10]} 13. Qd2 {[%emt 0:03:30]} d5 {[%emt 0:06:40]} 14. Rc1 {[%emt 0:03:55]} Qb5 {[%emt 0:00:07]} 15. Bd6 {[%emt 0:00:16]} Rd8 {[%emt 0:00:52]} 16. Bc5 {[%emt 0:03:33]} Nd7 {[%emt 0:02:37]} 17. Bxa7 {[%emt 0:02:02]} O-O {[%emt 0:00:56]} 18. b4 {[%emt 0:06:20]} Ra8 {[%emt 0:04:56]} 19. Bd4 {[%emt 0:06:43]} e5 {[%emt 0:01:53]} 20. Bb2 {[%emt 0:11:50]} Rae8 {[%emt 0:08:32]} 21. Rc2 {[%emt 0:01:48]} Qa4 {[%emt 0:01:53]} 22. Qc1 {[%emt 0:01:31]} Bb5 {[%emt 0:01:03]} 23. O-O {[%emt 0:02:04]} Nb6 {[%emt 0:00:24]} 24. f4 {[%emt 0:01:34]} f6 {[%emt 0:01:40]} 25. fxe5 {[%emt 0:00:24]} fxe5 {[%emt 0:00:04]} 26. Rxf8+ {[%emt 0:00:33]} Kxf8 {[%emt 0:00:14]} 27. Bxe5 {[%emt 0:00:36]} Nc4 {[%emt 0:01:11]} 28. Bd4 {[%emt 0:00:24]} Ne3 {[%emt 0:08:05]} 29. Bxe3 {[%emt 0:04:34]} Rxe3 {[%emt 0:00:05]} 30. Rxc6 {[%emt 0:01:20]} Qa7 {[%emt 0:02:45]} 31. Qc5+ {[%emt 0:01:02]} Qxc5 {[%emt 0:00:05]} 32. Rxc5 {[%emt 0:00:04]} Be8 {[%emt 0:02:45]} 33. Bxd5 {[%emt 0:00:57]} Rxa3 {[%emt 0:00:06]} 34. Ra5 {[%emt 0:00:36]} Re3 {[%emt 0:00:14]} 35. Kf2 {[%emt 0:00:27]} 1-0

[Event "2nd Irena Warakomska Memorial-A"]
[Site "Suwalki"]
[Date "2018.08.03"]
[Round "3"]
[White "Kashlinskaya, Alina"]
[Black "Bukojemski, Adam"]
[Result "1-0"]
[ECO "D85"]
[WhiteElo "2440"]
[BlackElo "2233"]
[Annotator "NA"]
[PlyCount "89"]
[EventDate "2018.08.01"]
[EventType "swiss"]
[EventCountry "POL"]
[SourceTitle "playchess.com"]
[Source "ChessBase"]
[SourceQuality "1"]
[TimeControl "40/5400+30:1800+30"]

1. d4 {[%emt 0:00:00]} Nf6 {[%emt 0:04:13]} 2. c4 {[%emt 0:00:00]} g6 {[%emt 0:00:12]} 3. Nc3 {[%emt 0:00:00]} d5 {[%emt 0:00:15]} 4. cxd5 {[%emt 0:00:00]} Nxd5 {[%emt 0:00:04]} 5. Bd2 {[%emt 0:00:03]} Bg7 {[%emt 0:03:09]} 6. e4 {[%emt 0:00:14]} Nxc3 {[%emt 0:01:37]} 7. Bxc3 {[%emt 0:00:11]} Nc6 {[%emt 0:05:15]} 8. d5 {[%emt 0:08:18]} Bxc3+ {[%emt 0:01:15]} 9. bxc3 {[%emt 0:00:06]} Na5 {[%emt 0:00:20]} 10. Qd2 {[%emt 0:06:47]} c6 {[%emt 0:02:28]} 11. c4 {[%emt 0:03:38]} b5 {[%emt 0:01:12]} 12. cxb5 {[%emt 0:01:56]} cxd5 {[%emt 0:00:08]} 13. exd5 {[%emt 0:00:29]} Bb7 {[%emt 0:01:44]} 14. Rd1 {[%emt 0:00:48]} Rc8 {[%emt 0:01:21]} 15. Nf3 {[%emt 0:06:37]} f6 {[%emt 0:06:19]} 16. Be2 {[%emt 0:13:42]} Nc4 {[%emt 0:18:09]} 17. Bxc4 {[%emt 0:00:23]} Rxc4 {[%emt 0:00:02]} 18. O-O {[%emt 0:00:22]} Rc5 {[%emt 0:04:38]} 19. Qe3 {[%emt 0:04:41]} Rxd5 {[%emt 0:03:31]} 20. Rxd5 {[%emt 0:02:25]} Qxd5 {[%emt 0:00:07]} 21. a4 {[%emt 0:06:31]} e5 {[%emt 0:10:59]} 22. Qxa7 {[%emt 0:02:25]} O-O {[%emt 0:00:06]} 23. Qb6 {[%emt 0:06:07]} Kg7 {[%emt 0:13:06]} 24. Rc1 {[%emt 0:09:57]} Rf7 {[%emt 0:05:42]} 25. Qc5 {[%emt 0:03:56]} Qa2 {[%emt 0:07:48]} 26. Qc2 {[%emt 0:02:00]} Qa3 {[%emt 0:00:07]} 27. Nd2 {[%emt 0:01:48]} Rd7 {[%emt 0:00:02]} 28. Nc4 {[%emt 0:00:51]} Qb4 {[%emt 0:01:13]} 29. Ne3 {[%emt 0:01:49]} Be4 {[%emt 0:02:22]} 30. Qc8 {[%emt 0:00:29]} Qd2 {[%emt 0:02:16]} 31. a5 {[%emt 0:03:41]} Bf5 {[%emt 0:02:47]} 32. Nxf5+ {[%emt 0:03:49]} gxf5 {[%emt 0:00:01]} 33. h3 {[%emt 0:00:36]} Kh6 {[%emt 0:00:12]} 34. Qf8+ {[%emt 0:04:08]} Kg6 {[%emt 0:00:15]} 35. Rc6 {[%emt 0:02:29]} Rf7 {[%emt 0:00:32]} 36. Qg8+ {[%emt 0:00:57]} Rg7 {[%emt 0:00:02]} 37. Qe8+ {[%emt 0:00:12]} Kg5 {[%emt 0:01:25]} 38. Qf8 {[%emt 0:01:08]} Rg6 {[%emt 0:00:15]} 39. Qa3 {[%emt 0:00:48]} f4 {[%emt 0:00:11]} 40. Qc3 {[%emt 0:00:00]} Qd1+ {[%emt 0:00:00]} 41. Kh2 {[%emt 0:04:39]} e4 {[%emt 0:08:11]} 42. Qc5+ {[%emt 0:04:03]} Kh4 {[%emt 0:04:31]} 43. Rxf6 {[%emt 0:02:09]} Rxf6 {[%emt 0:00:54]} 44. g3+ {[%emt 0:00:08]} fxg3+ {[%emt 0:00:02]} 45. fxg3# {[%emt 0:00:06]} 1-0

[Event "2nd Irena Warakomska Memorial-A"]
[Site "Suwalki"]
[Date "2018.08.03"]
[Round "3"]
[White "Grib, Roman"]
[Black "Zaika, Daniil"]
[Result "1-0"]
[ECO "B50"]
[WhiteElo "2431"]
[BlackElo "2213"]
[Annotator "NA RC"]
[PlyCount "83"]
[EventDate "2018.08.01"]
[EventType "swiss"]
[EventCountry "POL"]
[SourceTitle "playchess.com"]
[Source "ChessBase"]
[SourceQuality "1"]
[TimeControl "40/5400+30:1800+30"]

1. e4 {[%emt 0:00:00]} c5 {[%emt 0:00:00]} 2. Nf3 {[%emt 0:00:12]} d6 {[%emt 0:00:05]} 3. c3 {[%emt 0:00:31]} Nf6 {[%emt 0:00:44]} 4. Be2 {[%emt 0:00:22]} g6 {[%emt 0:01:04]} 5. O-O {[%emt 0:00:14]} Bg7 {[%emt 0:00:11]} 6. Bb5+ {[%emt 0:00:19]} Nc6 {[%emt 0:01:19]} 7. d4 {[%emt 0:03:41]} O-O {[%emt 0:02:39]} 8. d5 {[%emt 0:10:37]} Na5 {[%emt 0:02:14]} 9. Nbd2 {[%emt 0:11:48]} a6 {[%emt 0:00:37]} 10. Bd3 {[%emt 0:00:55]} b5 {[%emt 0:03:25]} 11. b4 {[%emt 0:02:24]} cxb4 {[%emt 0:18:34]} 12. cxb4 {[%emt 0:00:06]} Nc4 {[%emt 0:00:04]} 13. Bxc4 {[%emt 0:00:52]} bxc4 {[%emt 0:00:05]} 14. Bb2 {[%emt 0:00:15]} Bd7 {[%emt 0:09:05]} 15. Bc3 {[%emt 0:42:57]} e6 {[%emt 0:07:31]} 16. Rc1 {[%emt 0:10:39]} exd5 {[%emt 0:10:59]} 17. exd5 {[%emt 0:00:03]} Rc8 {[%emt 0:08:16]} 18. a3 {[%emt 0:05:13]} Nxd5 {[%emt 0:12:50]} 19. Bxg7 {[%emt 0:00:06]} Kxg7 {[%emt 0:00:03]} 20. Nxc4 {[%emt 0:00:22]} Nf4 {[%emt 0:01:30]} 21. g3 {[%emt 0:04:54]} d5 {[%emt 0:04:04]} 22. Qd4+ {[%emt 0:00:31]} Qf6 {[%emt 0:00:21]} 23. Qxf6+ {[%emt 0:00:26]} Kxf6 {[%emt 0:00:05]} 24. Nb6 {[%emt 0:00:32]} Ne2+ {[%emt 0:04:34]} 25. Kg2 {[%emt 0:00:04]} Rxc1 {[%emt 0:00:31]} 26. Nxd7+ {[%emt 0:00:30]} Ke7 {[%emt 0:00:07]} 27. Nxf8 {[%emt 0:00:17]} Kxf8 {[%emt 0:00:07]} 28. Rxc1 {[%emt 0:00:12]} Nxc1 {[%emt 0:00:08]} 29. Nd4 {[%emt 0:00:42]} Nd3 {[%emt 0:01:15]} 30. Kf3 {[%emt 0:00:58]} Ne5+ {[%emt 0:02:22]} 31. Kf4 {[%emt 0:02:51]} Nc4 {[%emt 0:00:15]} 32. a4 {[%emt 0:01:01]} Ke7 {[%emt 0:03:31]} 33. Kg5 {[%emt 0:01:11]} Nb6 {[%emt 0:02:34]} 34. a5 {[%emt 0:00:17]} Nd7 {[%emt 0:00:24]} 35. b5 {[%emt 0:00:23]} axb5 {[%emt 0:00:06]} 36. Nxb5 {[%emt 0:00:11]} Nc5 {[%emt 0:01:04]} 37. Kh6 {[%emt 0:00:25]} Kd7 {[%emt 0:00:23]} 38. Kxh7 {[%emt 0:00:28]} Na6 {[%emt 0:02:14]} 39. Kg8 {[%emt 0:01:10]} Kc6 {[%emt 0:00:28]} 40. Nd4+ {[%emt 0:00:05]} Kc5 {[%emt 0:00:00]} 41. Nf3 {[%emt 0:00:17]} f5 {[%emt 0:00:49]} 42. Kf7 {[%emt 0:00:26]} 1-0

[Event "2nd Irena Warakomska Memorial-A"]
[Site "Suwalki"]
[Date "2018.08.03"]
[Round "3"]
[White "Cukrowski, Filip"]
[Black "Aleksandrov, Aleksej"]
[Result "0-1"]
[ECO "C92"]
[WhiteElo "2404"]
[BlackElo "2585"]
[Annotator "ChessBase"]
[PlyCount "90"]
[EventDate "2018.08.01"]
[EventType "swiss"]
[EventCountry "POL"]
[SourceTitle "playchess.com"]
[Source "ChessBase"]
[SourceQuality "1"]
[TimeControl "40/5400+30:1800+30"]

1. e4 {[%emt 0:01:10]} e5 {[%emt 0:00:10]} 2. Nf3 {[%emt 0:01:09]} Nc6 {[%emt 0:00:05]} 3. Bb5 {[%emt 0:00:06]} a6 {[%emt 0:00:04]} 4. Ba4 {[%emt 0:01:03]} Nf6 {[%emt 0:00:06]} 5. O-O {[%emt 0:00:06]} Be7 {[%emt 0:00:03]} 6. Re1 {[%emt 0:00:21]} b5 {[%emt 0:00:07]} 7. Bb3 {[%emt 0:00:05]} O-O {[%emt 0:00:07]} 8. h3 {[%emt 0:00:06]} d6 {[%emt 0:00:24]} 9. c3 {[%emt 0:00:06]} Nd7 {[%emt 0:02:04]} 10. d4 {[%emt 0:01:53]} Bf6 {[%emt 0:00:08]} 11. Be3 {[%emt 0:04:18]} Ne7 {[%emt 0:05:10]} 12. Nbd2 {[%emt 0:06:47]} c5 {[%emt 0:02:17]} 13. dxe5 {[%emt 0:16:48]} dxe5 {[%emt 0:00:05]} 14. c4 {[%emt 0:00:05]} Qc7 {[%emt 0:16:25]} 15. Nh2 {[%emt 0:17:26]} Nc6 {[%emt 0:05:57]} 16. cxb5 {[%emt 0:00:23]} axb5 {[%emt 0:00:05]} 17. Bd5 {[%emt 0:00:06]} Be7 {[%emt 0:06:30]} 18. Ng4 {[%emt 0:08:53]} Bb7 {[%emt 0:06:12]} 19. a4 {[%emt 0:08:43]} bxa4 {[%emt 0:05:34]} 20. Nc4 {[%emt 0:00:21]} h5 {[%emt 0:01:59]} 21. Nh6+ {[%emt 0:03:57]} gxh6 {[%emt 0:00:10]} 22. Qxh5 {[%emt 0:00:06]} Nf6 {[%emt 0:00:25]} 23. Qxh6 {[%emt 0:08:47]} Nh7 {[%emt 0:16:43]} 24. Qh5 {[%emt 0:07:50]} Nb4 {[%emt 0:16:44]} 25. Bh6 {[%emt 0:02:32]} Bf6 {[%emt 0:00:40]} 26. Bxf8 {[%emt 0:05:32]} Nxf8 {[%emt 0:01:07]} 27. Bxb7 {[%emt 0:02:11]} Qxb7 {[%emt 0:00:06]} 28. Ra3 {[%emt 0:00:13]} Ng6 {[%emt 0:05:59]} 29. Rg3 {[%emt 0:00:24]} Nc2 {[%emt 0:03:00]} 30. Nd6 {[%emt 0:00:59]} Qd7 {[%emt 0:00:08]} 31. Rd1 {[%emt 0:01:23]} Nd4 {[%emt 0:00:39]} 32. Nxf7 {[%emt 0:00:32]} Qxf7 {[%emt 0:00:23]} 33. Rxg6+ {[%emt 0:00:13]} Bg7 {[%emt 0:00:16]} 34. Qg4 {[%emt 0:01:33]} Ra7 {[%emt 0:01:51]} 35. Rd3 {[%emt 0:00:44]} Qf4 {[%emt 0:02:53]} 36. Qxf4 {[%emt 0:00:37]} exf4 {[%emt 0:00:05]} 37. Rb6 {[%emt 0:00:20]} Nb3 {[%emt 0:02:20]} 38. Rdxb3 {[%emt 0:00:25]} axb3 {[%emt 0:00:05]} 39. Rxb3 {[%emt 0:00:03]} Ra2 {[%emt 0:00:14]} 40. Rb8+ {[%emt 0:00:00]} Kh7 {[%emt 0:00:00]} 41. Rb7 {[%emt 0:09:42]} Rxb2 {[%emt 0:01:39]} 42. Rc7 {[%emt 0:00:04]} Rc2 {[%emt 0:00:13]} 43. e5 {[%emt 0:00:16]} Kg6 {[%emt 0:00:22]} 44. e6 {[%emt 0:00:12]} Bd4 {[%emt 0:00:16]} 45. e7 {[%emt 0:01:47]} Kf7 {[%emt 0:01:16]} 0-1

[Event "2nd Irena Warakomska Memorial-A"]
[Site "Suwalki"]
[Date "2018.08.03"]
[Round "3"]
[White "Kosakowski, Jakub"]
[Black "Ulybin, Mikhail"]
[Result "1-0"]
[ECO "C08"]
[WhiteElo "2361"]
[BlackElo "2512"]
[Annotator "ChessBase"]
[PlyCount "71"]
[EventDate "2018.08.01"]
[EventType "swiss"]
[EventCountry "POL"]
[SourceTitle "playchess.com"]
[Source "ChessBase"]
[SourceQuality "1"]
[TimeControl "40/5400+30:1800+30"]

1. e4 {[%emt 0:00:00]} e6 {[%emt 0:05:17]} 2. d4 {[%emt 0:00:00]} d5 {[%emt 0:00:50]} 3. Nd2 {[%emt 0:00:00]} c5 {[%emt 0:03:11]} 4. exd5 {[%emt 0:00:31]} exd5 {[%emt 0:01:34]} 5. Ngf3 {[%emt 0:00:10]} Nf6 {[%emt 0:02:34]} 6. Bb5+ {[%emt 0:00:14]} Bd7 {[%emt 0:01:01]} 7. Bxd7+ {[%emt 0:00:11]} Nbxd7 {[%emt 0:00:41]} 8. O-O {[%emt 0:00:15]} Be7 {[%emt 0:01:32]} 9. dxc5 {[%emt 0:00:14]} Nxc5 {[%emt 0:00:53]} 10. Nd4 {[%emt 0:00:10]} Qd7 {[%emt 0:03:48]} 11. N2f3 {[%emt 0:03:12]} O-O {[%emt 0:03:03]} 12. Bf4 {[%emt 0:14:19]} Rfe8 {[%emt 0:06:22]} 13. c3 {[%emt 0:03:57]} Rac8 {[%emt 0:20:23]} 14. Re1 {[%emt 0:02:28]} b5 {[%emt 0:07:13]} 15. Ne5 {[%emt 0:08:51]} Qb7 {[%emt 0:00:44]} 16. Qf3 {[%emt 0:00:24]} Nce4 {[%emt 0:08:19]} 17. Nf5 {[%emt 0:18:01]} Bc5 {[%emt 0:13:59]} 18. Nd3 {[%emt 0:01:34]} Bb6 {[%emt 0:01:55]} 19. Re2 {[%emt 0:01:56]} Re6 {[%emt 0:07:43]} 20. Rae1 {[%emt 0:06:30]} Rce8 {[%emt 0:02:47]} 21. Be3 {[%emt 0:05:20]} Bc7 {[%emt 0:05:09]} 22. g3 {[%emt 0:03:50]} a5 {[%emt 0:00:55]} 23. Nc5 {[%emt 0:03:25]} Nxc5 {[%emt 0:00:19]} 24. Bxc5 {[%emt 0:00:05]} Ne4 {[%emt 0:01:06]} 25. Bd4 {[%emt 0:00:16]} Be5 {[%emt 0:00:29]} 26. Bxe5 {[%emt 0:01:18]} Rxe5 {[%emt 0:00:06]} 27. Nd6 {[%emt 0:00:36]} Qd7 {[%emt 0:01:02]} 28. Nxe8 {[%emt 0:00:06]} Rxe8 {[%emt 0:00:31]} 29. Qd3 {[%emt 0:00:19]} Rd8 {[%emt 0:00:25]} 30. f3 {[%emt 0:00:15]} Nf6 {[%emt 0:00:28]} 31. Re7 {[%emt 0:00:22]} Qc6 {[%emt 0:00:05]} 32. Qd4 {[%emt 0:00:29]} h6 {[%emt 0:00:33]} 33. Ra7 {[%emt 0:01:37]} a4 {[%emt 0:00:43]} 34. Ree7 {[%emt 0:00:19]} Nd7 {[%emt 0:00:19]} 35. Kg2 {[%emt 0:00:40]} Qd6 {[%emt 0:00:46]} 36. Qe3 {[%emt 0:00:14]} 1-0